bitfinex-derivatives/quotes_SOLF0:USTF0_20260105
["timestamp","ask_amount","ask_price","bid_price","bid_amount"]
[1767637562883,189.574,136.26,136.18,0.7393613]
[1767637562884,86.8,136.26,136.18,0.7393613]
[1767637563188,6.6061,136.28,136.2,7.3488613]
[1767637563388,86.78,136.29,136.2,7.3488613]
[1767637563588,86.78,136.29,136.2,0.7393613]
[1767637564088,86.78,136.29,136.17,0.7393613]
[1767637564089,102.7632,136.27,136.17,0.7393613]
[1767637564382,105.63888105,136.28,136.17,0.7393613]
[1767637565979,6.6076,136.24,136.17,7.3502613]
[1767637566479,105.63888105,136.28,136.18,7.3496613]
[1767637567572,6.6071,136.25,136.18,7.3496613]
[1767637567774,2.88158105,136.28,136.19,7.3493613]
[1767637568581,6.6071,136.25,136.19,7.3493613]
[1767637568982,105.64148105,136.28,136.17,7.3500613]
[1767637569288,6.6081,136.23,136.17,7.3500613]
[1767637570281,6.6081,136.23,136.17,0.7393613]
[1767637570784,89.64158105,136.24,136.15,0.7393613]
[1767637572689,6.6086,136.22,136.15,7.3512613]
[1767637573386,86.76,136.24,136.16,0.7393613]
[1767637573984,86.76,136.27,136.16,0.7393613]
[1767637574686,6.6076,136.25,136.18,7.3498613]
[1767637575789,105.64148105,136.28,136.19,0.7393613]
[1767637575790,2.88158105,136.28,136.19,0.7393613]
[1767637576281,6.6066,136.26,136.2,6.6094]
[1767637577378,2.88158105,136.29,136.21,0.7393613]
[1767637577586,2.88158105,136.29,136.21,7.3482613]
[1767637578084,6.6056,136.29,136.22,6.6085]
[1767637578695,6.6056,136.29,136.22,7.3478613]
[1767637579579,6.6057,136.28,136.22,0.7393613]
[1767637580890,86.76,136.3,136.22,0.7393613]
[1767637581397,2.88158105,136.31,136.22,0.7393613]
[1767637581598,127.47136938,136.35,136.25,0.7393613]
[1767637581889,89.64158105,136.35,136.25,0.7393613]
[1767637583592,6.6034,136.33,136.26,0.7393613]
[1767637583796,89.64158105,136.35,136.26,0.7393613]
[1767637583797,86.76,136.35,136.26,0.7393613]
[1767637584496,93.3625,136.35,136.27,6.606]
[1767637584695,89.64158105,136.35,136.26,0.7393613]
[1767637585191,6.6039,136.32,136.23,6.6077]
[1767637585396,2.88158105,136.33,136.23,7.3470613]
[1767637585594,105.60298105,136.33,136.24,0.7393613]
[1767637585998,6.6049,136.3,136.24,0.7393613]
[1767637586990,6.6039,136.32,136.24,0.7393613]
[1767637588595,6.6039,136.32,136.24,7.3467613]
[1767637589398,6.6039,136.32,136.25,0.7393613]
[1767637594200,6.6031,136.34,136.25,0.7393613]
[1767637594698,89.64158105,136.35,136.25,0.7393613]
[1767637595002,192.34808105,136.35,136.25,0.7393613]
[1767637595206,6.6043,136.31,136.25,0.7393613]
[1767637596198,6.6036,136.33,136.25,0.7393613]
[1767637596402,192.34808105,136.35,136.25,0.7393613]
[1767637596901,6.6042,136.31,136.25,0.7393613]
[1767637597900,6.6042,136.31,136.24,6.6072]
[1767637599198,6.6036,136.33,136.26,0.69779624]
[1767637599602,86.76,136.35,136.26,0.69779624]
[1767637600310,6.6032,136.33,136.27,6.6061]
[1767637601297,6.6027,136.35,136.28,7.30329624]
[1767637602905,6.603,136.34,136.26,7.30399624]
[1767637604010,6.6033,136.33,136.26,6.6062]
[1767637604309,6.6033,136.33,136.26,7.30399624]
[1767637604508,6.6037,136.32,136.26,0.69779624]
[1767637605104,6.6037,136.32,136.26,7.30439624]
[1767637605312,8.44234162,136.33,136.26,7.30439624]
[1767637606701,6.6038,136.32,136.25,6.607]
[1767637606903,1.83914162,136.33,136.24,9.29069891]
[1767637607313,6.6043,136.31,136.24,15.89829891]
[1767637608906,6.6043,136.31,136.25,6.6071]
[1767637609110,1.83914162,136.33,136.25,7.30489624]
[1767637610118,1.83914162,136.31,136.23,7.30539624]
[1767637610612,8.44434162,136.29,136.23,7.30539624]
[1767637611916,1.83914162,136.31,136.23,7.30539624]
[1767637612715,1.83914162,136.29,136.23,7.30539624]
[1767637612916,8.44434162,136.29,136.23,7.30539624]
[1767637613614,6.6057,136.28,136.22,6.75376105]
[1767637613817,1.83914162,136.27,136.21,14.0104036]
[1767637614220,1.83914162,136.27,136.21,0.64794255]
[1767637615918,8.44524162,136.27,136.2,6.6093]
[1767637616118,1.83914162,136.27,136.19,7.4017036]
[1767637616314,6.6076,136.24,136.19,6.75376105]
[1767637616512,6.6076,136.24,136.18,9.12057105]
[1767637617812,6.6076,136.24,136.18,2.36681]
[1767637619624,8.44734162,136.23,136.18,2.36681]
[1767637620923,1.83914162,136.23,136.18,2.36681]
[1767637622226,1.83914162,136.25,136.18,3.06176759]
[1767637622524,1.83914162,136.25,136.18,2.36681]
[1767637622925,6.6077,136.24,136.18,2.36681]
[1767637623325,1.83914162,136.25,136.18,2.36681]
[1767637623831,1.83914162,136.23,136.18,2.36681]
[1767637624428,88.57914162,136.27,136.18,3.06176759]
[1767637624631,88.57914162,136.27,136.19,0.69495759]
[1767637625229,86.74,136.27,136.19,0.69495759]
[1767637625434,88.57914162,136.27,136.19,0.69495759]
[1767637625729,6.6067,136.26,136.19,0.69495759]
[1767637625928,88.57914162,136.27,136.19,0.69495759]
[1767637627530,6.6072,136.25,136.19,0.69495759]
[1767637629535,1.83914162,136.25,136.18,2.36681]
[1767637629736,1.83914162,136.23,136.18,2.36681]
[1767637630535,6.6088,136.22,136.18,2.36681]
[1767637630735,6.6088,136.22,136.18,1.73223884]
[1767637631434,1.83914162,136.21,136.12,0.69495759]
[1767637631645,1.83914162,136.19,136.12,0.69495759]
[1767637632033,86.74,136.22,136.13,6.6128]
[1767637632336,1.83914162,136.21,136.13,0.69495759]
[1767637632742,6.6101,136.19,136.13,0.69495759]
[1767637633647,6.6106,136.18,136.1,9.14809921]
[1767637633847,6.6106,136.18,136.11,0.69495759]
[1767637634344,1.83914162,136.2,136.13,0.69495759]
[1767637635549,8.44874162,136.2,136.13,7.30785759]
[1767637636845,1.83914162,136.2,136.11,7.30855759]
[1767637637249,1.83914162,136.18,136.1,0.69495759]
[1767637637550,6.6116,136.16,136.1,7.30935759]
[1767637637749,1.83914162,136.18,136.11,0.69495759]
[1767637637949,189.572,136.21,136.11,0.69495759]
[1767637637950,1.83914162,136.19,136.11,0.69495759]
[1767637638751,1.83914162,136.2,136.12,0.69495759]
[1767637639349,102.7737,136.26,136.17,0.69495759]
[1767637639651,102.7639,136.27,136.17,0.69495759]
[1767637639652,104.60304162,136.27,136.17,0.69495759]
[1767637640150,104.60304162,136.27,136.17,2.53409921]
[1767637640551,6.6073,136.25,136.17,2.53409921]
[1767637643761,6.6073,136.25,136.17,9.14479921]
[1767637645156,6.6073,136.25,136.18,0.69495759]
[1767637645762,1.83914162,136.25,136.16,2.53409921]
[1767637645958,1.83914162,136.25,136.16,0.69495759]
[1767637647761,6.6082,136.23,136.16,0.69495759]
[1767637649062,6.6082,136.23,136.17,2.53409921]
[1767637649263,104.60954162,136.26,136.17,2.53409921]
[1767637649562,104.60954162,136.26,136.17,0.69495759]
[1767637650359,1.83914162,136.24,136.17,0.69495759]
[1767637650563,6.6082,136.23,136.17,0.69495759]
[1767637652275,1.83914162,136.2,136.12,6.613]
[1767637652967,1.83914162,136.2,136.09,86.76]
[1767637653173,1.83914162,136.16,136.09,0.66701115]
[1767637654064,88.59914162,136.17,136.09,0.66701115]
[1767637654267,1.83914162,136.17,136.11,0.66701115]
[1767637654565,1.83914162,136.19,136.11,0.66701115]
[1767637655067,1.83914162,136.19,136.11,7.28071115]
[1767637658780,8.44934162,136.19,136.11,7.28071115]
[1767637659282,6.6106,136.18,136.11,0.66701115]
[1767637659679,1.83914162,136.19,136.11,0.66701115]
[1767637659984,6.6111,136.17,136.11,0.66701115]
[1767637660180,1.83914162,136.18,136.11,0.66701115]
[1767637660676,8.44974162,136.18,136.11,0.66701115]
[1767637664691,6.6106,136.18,136.11,0.66701115]
[1767637665285,6.6106,136.18,136.11,7.28091115]
[1767637666091,6.611,136.17,136.11,7.28091115]
[1767637667782,6.611,136.17,136.11,0.66701115]
[1767637668291,6.6115,136.16,136.11,0.66701115]
[1767637669491,6.611,136.17,136.11,7.28091115]
[1767637670092,6.611,136.17,136.11,0.66701115]
[1767637670894,86.76,136.2,136.13,0.66701115]
[1767637671085,86.76,136.2,136.11,0.66701115]
[1767637671596,6.611,136.17,136.11,7.28081115]
[1767637672282,102.8233,136.19,136.09,16.29364391]
[1767637672488,2.88004833,136.18,136.09,0.66701115]
[1767637674688,105.71564833,136.18,136.09,0.66701115]
[1767637674890,102.84,136.17,136.07,0.63419802]
[1767637675396,2.88004833,136.14,136.06,6.6163]
[1767637675692,2.88004833,136.15,136.06,0.63419802]
[1767637675897,86.8,136.15,136.06,0.63419802]
[1767637676594,86.8,136.15,136.07,0.63419802]
[1767637678592,6.6124,136.14,136.08,6.6152]
[1767637678787,86.8,136.15,136.08,7.24939802]
[1767637680697,93.412,136.15,136.08,7.24939802]
[1767637681198,6.612,136.15,136.08,7.24939802]
[1767637685503,86.8,136.17,136.09,7.28727693]
[1767637685703,86.8,136.17,136.09,0.67257693]
[1767637685908,6.6121,136.15,136.09,0.67257693]
[1767637688210,6.6125,136.14,136.08,6.6153]
[1767637688410,6.6125,136.14,136.08,7.28787693]
[1767637689808,6.6125,136.14,136.08,0.67257693]
[1767637690009,6.6125,136.14,136.06,7.28847693]
[1767637690209,6.6125,136.14,136.07,0.67257693]
[1767637690713,89.68004833,136.17,136.08,0.67257693]
[1767637691608,6.6122,136.15,136.09,0.67257693]
[1767637692213,6.6115,136.16,136.1,0.67257693]
[1767637694913,189.6361,136.18,136.08,0.67257693]
[1767637696003,6.6127,136.14,136.08,0.67257693]
[1767637696410,102.8461,136.16,136.06,16.30100969]
[1767637696611,102.8461,136.16,136.06,0.67257693]
[1767637696612,6.6137,136.12,136.06,0.67257693]
[1767637698318,6.6137,136.12,136.06,7.28887693]
[1767637703922,6.6129,136.14,136.08,0.67257693]
[1767637707523,128.05524185,136.19,136.09,0.67257693]
[1767637707715,102.8328,136.18,136.09,0.67257693]
[1767637707920,2.88004833,136.17,136.09,0.67257693]
[1767637708320,6.612,136.15,136.09,0.67257693]
[1767637708721,2.88004833,136.17,136.09,0.67257693]
[1767637708921,6.6125,136.14,136.09,0.67257693]
[1767637711328,6.6118,136.16,136.09,7.28747693]
[1767637711527,214.87524185,136.19,136.09,0.67257693]
[1767637712319,102.8322,136.18,136.08,15.62753276]
[1767637712923,6.612,136.15,136.08,15.62753276]
[1767637713126,6.612,136.15,136.08,16.25932472]
[1767637714022,214.87524185,136.19,136.09,7.24659196]
[1767637715536,6.6116,136.16,136.09,7.24659196]
[1767637716032,6.6116,136.16,136.09,16.25872472]
[1767637716241,89.70004833,136.19,136.1,7.24619196]
[1767637717531,6.6115,136.16,136.1,7.24619196]
[1767637724335,6.6115,136.16,136.1,0.63179196]
[1767637725534,102.8316,136.18,136.09,9.01213276]
[1767637726540,6.6123,136.15,136.09,9.01213276]
[1767637727038,1.8437572,136.16,136.09,9.01213276]
[1767637728246,6.612,136.15,136.09,9.01213276]
[1767637728844,6.612,136.15,136.09,9.64392472]
[1767637730146,6.612,136.15,136.09,16.25872472]
[1767637730454,8.4550572,136.17,136.1,0.63179196]
[1767637730643,116.0037,136.24,136.12,0.63179196]
[1767637730844,1.8437572,136.2,136.12,0.63179196]
[1767637731041,6.6101,136.19,136.13,0.63179196]
[1767637733039,93.4095,136.21,136.14,0.63179196]
[1767637733233,1.8437572,136.22,136.12,11.51653383]
[1767637733438,1.8437572,136.2,136.12,9.67277663]
[1767637734543,6.6101,136.19,136.13,7.27354387]
[1767637735741,1.8437572,136.21,136.14,0.66064387]
[1767637736550,6.6096,136.2,136.14,0.66064387]
[1767637744859,1.8437572,136.19,136.1,9.68462353]
[1767637745058,1.8437572,136.17,136.1,9.68462353]
[1767637745263,1.8437572,136.17,136.1,0.67249077]
[1767637746560,6.6116,136.16,136.1,7.28689077]
[1767637746961,6.6116,136.16,136.1,0.67249077]
[1767637747166,6.6116,136.16,136.09,6.6149]
[1767637747554,86.78,136.19,136.1,0.67249077]
[1767637747757,1.8437572,136.18,136.1,0.67249077]
[1767637748153,8.4554572,136.16,136.09,6.6148]
[1767637748460,8.4554572,136.16,136.09,7.28729077]
[1767637750265,6.6117,136.16,136.1,0.67249077]
[1767637751360,1.8437572,136.17,136.1,0.67249077]
[1767637752466,88.6237572,136.19,136.11,0.67249077]
[1767637752765,86.78,136.19,136.11,0.67249077]
[1767637752973,6.6098,136.2,136.13,0.67249077]
[1767637753555,6.6089,136.22,136.15,7.28439077]
[1767637753754,8.4526572,136.22,136.15,7.28439077]
[1767637754061,86.8,136.23,136.16,0.67249077]
[1767637754365,86.8,136.23,136.16,7.28379077]
[1767637756473,1.8437572,136.22,136.15,6.6117]
[1767637756669,6.6083,136.23,136.15,7.28419077]
[1767637756863,1.8437572,136.22,136.15,7.28419077]
[1767637758169,8.4520572,136.23,136.16,0.67249077]
[1767637758364,8.4520572,136.23,136.16,7.28389077]
[1767637760571,6.6083,136.23,136.16,7.28389077]
[1767637760768,8.4520572,136.23,136.16,7.28389077]
[1767637766280,6.6083,136.23,136.17,0.67249077]
[1767637766482,8.4520572,136.23,136.15,0.67249077]
[1767637767587,8.4520572,136.23,136.16,0.67249077]
[1767637768884,6.6086,136.22,136.16,0.67249077]
[1767637771177,1.8437572,136.23,136.15,6.6119]
[1767637771178,6.6091,136.21,136.15,6.6119]
[1767637771583,6.6091,136.21,136.14,2.4698515]
[1767637771887,6.6091,136.21,136.14,0.6260943]
[1767637772184,6.6096,136.2,136.14,0.6260943]
[1767637773081,6.6101,136.19,136.14,0.6260943]
[1767637773988,1.8437572,136.18,136.12,0.6260943]
[1767637774187,1.8437572,136.2,136.12,0.6260943]
[1767637774880,6.6105,136.18,136.12,7.2393943]
[1767637778190,6.61,136.19,136.12,7.2393943]
[1767637778681,6.6094,136.21,136.14,7.2384943]
[1767637778882,1.8437572,136.23,136.15,0.6260943]
[1767637780186,1.8437572,136.25,136.16,7.2374943]
[1767637780387,1.8437572,136.25,136.16,9.0812515]
[1767637780687,86.78,136.26,136.17,0.6260943]
[1767637780887,88.6237572,136.26,136.17,0.6260943]
[1767637781686,6.6076,136.24,136.17,7.2369943]
[1767637783985,6.6081,136.23,136.17,0.6260943]
[1767637785995,6.6076,136.24,136.17,7.2369943]
[1767637787398,6.6082,136.23,136.17,7.2369943]
[1767637789989,6.6086,136.22,136.15,10.11440749]
[1767637790188,6.6086,136.22,136.16,0.6260943]
[1767637791604,6.6086,136.22,136.16,7.2373943]
[1767637793202,6.6081,136.23,136.16,7.2373943]
[1767637793602,189.5535,136.26,136.16,7.2373943]
[1767637794398,6.6086,136.22,136.16,0.6260943]
[1767637794603,6.6086,136.22,136.15,6.6117]
[1767637794804,102.7865,136.24,136.14,9.65574821]
[1767637795002,6.6094,136.21,136.15,6.6119]
[1767637796199,102.7785,136.25,136.16,0.64361545]
[1767637796503,102.7785,136.25,136.16,7.25501545]
[1767637797601,6.6086,136.22,136.16,0.64361545]
[1767637798702,6.6079,136.24,136.17,0.64361545]
[1767637799098,189.5535,136.26,136.17,0.64361545]
[1767637800007,189.5535,136.26,136.16,15.62333276]
[1767637800008,189.5535,136.26,136.16,6.6112]
[1767637800210,189.5535,136.26,136.16,7.25481545]
[1767637800404,6.6089,136.22,136.15,9.01213276]
[1767637800610,6.6089,136.22,136.15,9.65574821]
[1767637801204,102.7952,136.23,136.14,9.01213276]
[1767637801410,218.7752,136.25,136.14,0.64059144]
[1767637801604,218.7752,136.25,136.15,0.64059144]
[1767637802109,6.6091,136.21,136.15,0.64059144]
[1767637804818,6.6091,136.21,136.13,9.6527242]
[1767637805717,6.6091,136.21,136.14,6.6124]
[1767637806512,6.6091,136.21,136.14,7.25299144]
[1767637808013,6.6084,136.23,136.16,0.64059144]
[1767637808224,86.78,136.26,136.16,0.64059144]
[1767637808410,86.78,136.26,136.18,0.64059144]
[1767637809316,6.6076,136.24,136.16,9.6527242]
[1767637809623,86.78,136.26,136.16,0.64059144]
[1767637810621,6.6081,136.23,136.16,7.25159144]
[1767637812720,6.6081,136.23,136.17,6.6108]
[1767637813216,6.6076,136.24,136.17,6.6108]
[1767637813418,6.6076,136.24,136.18,0.64059144]
[1767637815916,6.6081,136.23,136.18,0.64059144]
[1767637816125,86.78,136.26,136.16,0.64059144]
[1767637816126,189.5556,136.26,136.16,0.64059144]
[1767637816326,102.7819,136.25,136.16,0.64059144]
[1767637816829,105.65861319,136.25,136.14,9.6527242]
[1767637817020,102.789,136.24,136.14,9.6527242]
[1767637817322,102.789,136.24,136.12,13.34262481]
[1767637817323,105.66981319,136.23,136.12,9.6527242]
[1767637817723,105.66981319,136.23,136.13,0.64059144]
[1767637817919,6.6101,136.19,136.13,0.64059144]
[1767637819822,93.3695,136.21,136.13,7.25349144]
[1767637820215,93.3695,136.21,136.14,6.6124]
[1767637820426,93.3695,136.21,136.14,7.25299144]
[1767637821419,93.3695,136.21,136.14,16.2651242]
[1767637822718,6.6095,136.21,136.14,7.25299144]
[1767637822919,6.6096,136.2,136.13,9.01213276]
[1767637823527,6.6096,136.2,136.13,15.62503276]
[1767637824523,6.6096,136.2,136.13,16.2656242]
[1767637825427,102.789,136.24,136.14,7.25299144]
[1767637826326,6.6095,136.21,136.14,7.25299144]
[1767637826827,102.789,136.24,136.13,9.01213276]
[1767637826828,105.67421319,136.23,136.13,9.01213276]
[1767637827028,105.67421319,136.23,136.12,16.2657242]
[1767637827524,6.6102,136.19,136.13,6.6129]
[1767637828733,6.6093,136.21,136.14,6.6124]
[1767637830330,6.6097,136.2,136.14,6.6124]
[1767637831431,6.6097,136.2,136.13,0.64059144]
[1767637831629,6.6101,136.19,136.13,0.64059144]
[1767637833135,6.6096,136.2,136.14,0.63354906]
[1767637835634,6.6096,136.2,136.14,7.24594906]
[1767637836133,2.87671319,136.23,136.14,0.63354906]
[1767637836334,2.87671319,136.23,136.12,9.01213276]
[1767637836335,89.63671319,136.25,136.16,0.63354906]
[1767637836830,2.87671319,136.21,136.13,9.64568182]
[1767637837035,2.87671319,136.21,136.13,0.63354906]
[1767637837536,6.6095,136.21,136.14,0.63354906]
[1767637838535,6.6095,136.21,136.14,7.24574906]
[1767637839830,102.8006,136.22,136.14,0.63354906]
[1767637840031,2.87671319,136.21,136.12,9.64568182]
[1767637840228,2.87671319,136.21,136.13,0.63354906]
[1767637841538,6.61,136.19,136.13,0.63354906]
[1767637844944,9.48621319,136.21,136.13,7.24614906]
[1767637845339,2.87671319,136.21,136.13,7.24614906]
[1767637846137,2.87671319,136.21,136.13,16.25828182]
[1767637846339,2.87671319,136.23,136.15,0.63354906]
[1767637847429,6.6092,136.21,136.15,0.63354906]
[1767637848545,8.45156573,136.21,136.15,0.63354906]
[1767637849546,8.45156573,136.21,136.14,6.6124]
[1767637850046,6.6095,136.2,136.13,9.64568182]
[1767637851552,6.6095,136.2,136.13,16.25858182]
[1767637852143,1.84236573,136.21,136.14,0.63354906]
[1767637852347,8.45126573,136.22,136.15,0.63354906]
[1767637852547,1.84236573,136.23,136.16,0.63354906]
[1767637853050,8.45056573,136.23,136.16,7.24504906]
[1767637855758,1.84236573,136.21,136.15,6.6119]
[1767637856060,1.84236573,136.21,136.15,0.62973471]
[1767637857658,8.45156573,136.21,136.15,0.62973471]
[1767637858255,1.84236573,136.19,136.13,9.64186747]
[1767637858648,1.84236573,136.19,136.13,0.62973471]
[1767637858857,8.45236573,136.19,136.13,0.62973471]
[1767637859160,8.45236573,136.19,136.13,9.64186747]
[1767637859362,8.45236573,136.19,136.13,16.25476747]
[1767637860157,8.45236573,136.19,136.13,9.64186747]
[1767637860563,6.6105,136.18,136.13,9.64186747]
[1767637860765,6.6105,136.18,136.13,0.62973471]
[1767637861165,6.6105,136.18,136.12,9.61683958]
[1767637861868,6.6105,136.18,136.13,0.60470682]
[1767637862166,1.84236573,136.19,136.13,0.60470682]
[1767637862465,1.84236573,136.19,136.13,9.61683958]
[1767637863068,8.45266573,136.19,136.13,16.22973958]
[1767637863564,102.8037,136.22,136.13,16.22973958]
[1767637863565,1.84236573,136.22,136.15,0.60470682]
[1767637864566,6.6094,136.21,136.15,0.60470682]
[1767637866767,86.78,136.25,136.16,0.60470682]
[1767637866974,1.84236573,136.24,136.16,0.60470682]
[1767637868465,1.84236573,136.22,136.15,9.01213276]
[1767637868773,1.84236573,136.22,136.14,16.22883958]
[1767637868969,6.6096,136.2,136.14,9.61683958]
[1767637869270,8.45196573,136.2,136.14,9.61683958]
[1767637869471,8.45196573,136.2,136.14,0.60470682]
[1767637869863,8.45196573,136.2,136.13,9.01213276]
[1767637870070,8.45196573,136.2,136.13,9.61683958]
[1767637871368,8.45196573,136.2,136.13,0.60470682]
[1767637873169,8.45196573,136.2,136.13,7.21760682]
[1767637874578,189.561,136.25,136.15,0.60470682]
[1767637874579,8.45126573,136.22,136.15,0.60470682]
[1767637874869,102.7687,136.27,136.18,0.60470682]
[1767637874870,1.84236573,136.27,136.18,0.60470682]
[1767637875277,6.6067,136.26,136.2,0.60470682]
[1767637875575,26.57321617,136.28,136.2,0.60470682]
[1767637875874,26.57321617,136.28,136.2,7.42996946]
[1767637876669,6.6061,136.27,136.2,7.42996946]
[1767637877563,6.6061,136.27,136.2,14.03946946]
[1767637878170,6.6066,136.26,136.2,7.42996946]
[1767637879288,31.33685044,136.28,136.21,0.60470682]
[1767637879581,24.73085044,136.28,136.21,0.60470682]
[1767637879980,1.84236573,136.27,136.19,7.42996946]
[1767637881669,6.6067,136.26,136.19,7.42996946]
[1767637883978,1.84236573,136.27,136.19,7.42996946]
[1767637885074,1.84236573,136.27,136.19,0.60470682]
[1767637885583,6.6068,136.26,136.19,0.60470682]
[1767637887074,6.6073,136.25,136.19,0.60470682]
[1767637887379,1.84236573,136.25,136.16,100.21646264]
[1767637887682,1.84236573,136.25,136.16,14.04116946]
[1767637888583,6.6082,136.23,136.16,14.04116946]
[1767637890490,8.45056573,136.23,136.16,14.04116946]
[1767637890688,6.6086,136.22,136.16,7.42996946]
[1767637890892,6.6086,136.22,136.16,0.60470682]
[1767637891388,6.6086,136.22,136.16,7.42996946]
[1767637894787,6.6086,136.22,136.16,14.04146946]
[1767637895294,6.6086,136.22,136.17,0.61641978]
[1767637895490,1.84236573,136.23,136.17,0.61641978]
[1767637895690,1.84236573,136.23,136.17,7.44168242]
[1767637896697,8.45046573,136.23,136.17,7.44168242]
[1767637901001,1.84236573,136.23,136.16,6.82526264]
[1767637901198,86.76,136.24,136.16,7.44168242]
[1767637901398,86.76,136.24,136.17,0.61641978]
[1767637901600,86.76,136.24,136.17,7.44168242]
[1767637902607,6.6085,136.23,136.17,7.44168242]
[1767637903193,6.6087,136.22,136.17,7.44168242]
[1767637903502,6.6087,136.22,136.16,7.44168242]
[1767637909005,6.6087,136.22,136.17,0.61641978]
[1767637909205,1.84236573,136.23,136.17,6.82526264]
[1767637909412,1.84236573,136.23,136.17,7.44168242]
[1767637909912,8.45046573,136.23,136.17,7.44168242]
[1767637910512,6.6081,136.23,136.17,7.44168242]
[1767637913807,86.76,136.24,136.18,0.61146132]
[1767637914203,86.76,136.24,136.18,7.43672396]
[1767637915714,93.3677,136.24,136.18,7.43672396]
[1767637916399,93.3677,136.24,136.19,0.61146132]
[1767637918514,93.3677,136.24,136.19,7.42632021]
[1767637920418,27.60830114,136.28,136.2,7.42632021]
[1767637920419,6.6071,136.26,136.2,7.42632021]
[1767637920620,111.49085044,136.28,136.21,7.42632021]
[1767637921518,86.76,136.28,136.22,7.1921894]
[1767637921828,86.76,136.28,136.22,6.81485889]
[1767637922004,86.76,136.28,136.21,6.81485889]
[1767637922209,89.6374507,136.28,136.21,6.81485889]
[1767637922808,6.6066,136.26,136.21,6.81485889]
[1767637923311,86.76,136.28,136.21,7.39854829]
[1767637923705,86.76,136.28,136.22,7.39854829]
[1767637924104,105.6043507,136.32,136.22,7.39854829]
[1767637924105,2.8774507,136.32,136.23,0.5836894]
[1767637924317,2.8774507,136.34,136.24,0.5836894]
[1767637924621,86.76,136.33,136.25,6.81485889]
[1767637925214,86.76,136.33,136.25,7.39854829]
[1767637925607,6.6042,136.31,136.25,7.39854829]
[1767637926317,86.76,136.33,136.26,0.5836894]
[1767637927616,6.6037,136.32,136.26,0.5836894]
[1767637928017,6.6037,136.32,136.25,6.81485889]
[1767637928223,6.6042,136.31,136.26,0.5836894]
[1767637928519,86.76,136.33,136.27,0.5836894]
[1767637931925,86.76,136.33,136.28,0.5836894]
[1767637932124,105.5676507,136.37,136.28,0.5836894]
[1767637932125,6.6021,136.36,136.28,0.5836894]
[1767637932418,89.5974507,136.37,136.28,0.5836894]
[1767637933418,6.6022,136.36,136.28,0.5836894]
[1767637934628,6.6022,136.36,136.29,6.605]
[1767637934818,6.6023,136.35,136.28,0.5836894]
[1767637935118,89.5974507,136.37,136.26,7.1899894]
[1767637935513,6.6033,136.33,136.26,7.1899894]
[1767637935718,192.2915507,136.37,136.28,0.5836894]
[1767637936526,6.6026,136.35,136.28,0.5836894]
[1767637937523,6.6029,136.34,136.28,0.5836894]
[1767637938227,6.6029,136.34,136.26,0.5836894]
[1767637938422,192.2915507,136.37,136.26,0.5836894]
[1767637938423,2.8774507,136.35,136.26,0.5836894]
[1767637939519,6.6029,136.34,136.27,6.606]
[1767637939720,6.6029,136.34,136.27,7.1896894]
[1767637940522,6.6029,136.34,136.28,6.6056]
[1767637941828,6.6029,136.34,136.28,7.1892894]
[1767637942420,6.6022,136.36,136.28,7.1892894]
[1767637942727,89.5974507,136.37,136.28,7.1892894]
[1767637943528,6.6023,136.35,136.28,7.1892894]
[1767637944333,89.5974507,136.37,136.29,6.6049]
[1767637944720,89.5974507,136.37,136.29,0.5836894]
[1767637944929,86.72,136.37,136.31,7.1878894]
[1767637945729,6.6012,136.38,136.31,7.1878894]
[1767637945928,6.6013,136.37,136.31,0.5836894]
[1767637952120,6.6008,136.38,136.31,7.1878894]
[1767637952326,2.8774507,136.4,136.31,0.5836894]
[1767637952631,86.68,136.41,136.31,0.5836894]
[1767637953335,6.6004,136.39,136.32,0.58365738]
[1767637953528,86.68,136.41,136.32,0.58365738]
[1767637953735,6.6005,136.39,136.31,6.6039]
[1767637953935,6.6005,136.39,136.31,7.18755738]
[1767637954234,6.6005,136.39,136.32,0.58365738]
[1767637954835,6.6005,136.39,136.32,7.18735738]
[1767637955040,2.8774507,136.39,136.29,0.58365738]
[1767637956534,6.6014,136.37,136.31,6.6042]
[1767637957641,2.8774507,136.39,136.31,7.18785738]
[1767637957832,2.8774507,136.39,136.31,0.58365738]
[1767637958631,6.6019,136.36,136.31,0.58365738]
[1767637958936,2.8774507,136.39,136.31,0.58365738]
[1767637960538,6.6015,136.37,136.31,0.58365738]
[1767637961543,6.6018,136.36,136.31,0.58365738]
[1767637963044,6.6013,136.37,136.31,0.58365738]
[1767637964334,6.6018,136.36,136.31,0.58365738]
[1767637964539,105.5529507,136.39,136.29,7.39851627]